[Event "LTU-ch Women 2019"]
[Site "Vilnius"]
[Date "2019.03.21"]
[Round "7.3"]
[White "Kaspute, Vesta"]
[Black "Ravlusevic, Evelina"]
[Result "0-1"]
[ECO "B96"]
[WhiteElo "2037"]
[BlackElo "1704"]
[Annotator "NA RC"]
[PlyCount "148"]
[EventDate "2019.??.??"]
[EventCountry "LTU"]
[SourceTitle "playchess.com"]
[Source "ChessBase"]
[SourceQuality "1"]
[TimeControl "5400+30"]

{[%evp 11,148,15,29,8,27,6,34,9,21,-52,-7,-68,-58,-94,-69,-65,-31,-62,23,10,44,26,99,-137,-124,-108,-137,-122,-108,-258,-65,-61,-67,-74,-50,-282,-271,-319,-327,-318,-306,-308,-329,-283,-277,-289,-300,-292,-273,-295,-301,-354,-318,-344,-352,-361,-289,-341,-363,-337,-322,-304,-370,-364,32767,32767,32767,32767,32767,32767,-644,-620,-750,-633,-369,-543,32767,-623,-663,-544,-471,-432,-438,-415,-8,-6,0,-306,-293,-333,-235,-285,-220,32767,-316,-292,32767,32767,32767,32767,32767,-214,-268,-190,32767,32767,-461,-625,-445,-390,-308,-606,0,32767,32767,32767,-148,-152,-172,-154,-159,-159,-181,-183,-181,-394,-178,-178,-151,-184,-184,-491,-1161,-522,-947,-2265,-5051,-2351,-1443]} 1. e4 {[%emt 0:00:00]} c5 {[%emt 0:00:00]} 2. Nf3 {[%emt 0:00:00]} d6 {[%emt 0:00:31]} 3. d4 {[%emt 0:00:07]} cxd4 {[%emt 0:00:06]} 4. Nxd4 {[%emt 0:00:04]} Nf6 {[%emt 0:00:07]} 5. Nc3 {[%emt 0:00:04]} a6 {[%emt 0:00:04]} 6. Bg5 {[%emt 0:01:27]} e6 {[%emt 0:00:07]} 7. f4 {[%emt 0:00:54]} Nbd7 {[%emt 0:00:08]} 8. Qf3 {[%emt 0:00:47]} Qc7 {[%emt 0:00:30]} 9. O-O-O {[%emt 0:00:51]} b5 {[%emt 0:00:07]} 10. f5 {[%emt 0:11:06] B96: Sicilian Najdorf: 6 Bg5 e6 7 f4, lines other than 7...Qb6 and 7...Be7} (10. Bd3 Bb7 11. Rhe1 Qb6 12. Bxf6 Nxf6 13. f5 b4 14. Nce2 e5 15. Nb3 h5 16. Kb1 Be7 17. Nd2 Rc8 18. Nc4 Rxc4 19. Bxc4 Bxe4 20. Qb3 O-O {½-½ (39) Jakovenko,D (2735)-Gelfand,B (2731) Ashdod 2015}) 10... e5 {[%emt 0:03:00]} 11. Nde2 $146 {[%emt 0:01:00]} ({Predecessor:} 11. Nb3 Bb7 12. Bxf6 Nxf6 13. Nd5 Bxd5 14. exd5 Be7 15. g4 Nd7 16. h4 h6 17. Kb1 {½-½ (17) Vasile,C (2241)-Jugaru,L (1944) Cap Aurora 2016}) 11... Bb7 {[%emt 0:00:36]} 12. Ng3 {[%emt 0:00:43]} b4 {[%emt 0:02:57]} 13. Nd5 {[%emt 0:00:34]} Bxd5 {[%emt 0:01:57]} 14. exd5 {[%emt 0:00:02]} Rc8 {[%emt 0:02:01]} ({Better is} 14... Be7 $15) 15. Bd3 {[%emt 0:02:44]} Qa5 {[%emt 0:00:45]} 16. Kb1 {[%emt 0:01:27]} Nxd5 {[%emt 0:08:14] [#]} (16... Be7 $14) 17. Bxa6 $2 {[%emt 0:21:57] [#]} (17. f6 $1 $16 {[%mdl 512] and life is bright.} g6 (17... N5xf6 18. Bf5) 18. Be4) 17... Nc3+ $1 {[%emt 0:00:45] Double Attack} 18. bxc3 {[%emt 0:02:00]} bxc3 {[%emt 0:00:57]} 19. Ka1 {[%emt 0:02:49]} ({But not} 19. Qb7 $2 Rb8 $19) 19... Qxa6 {[%emt 0:00:25]} 20. Ne4 {[%emt 0:04:14] [#]} (20. Qd3 $17 {might work better.} Qxd3 21. Rxd3) 20... Qa3 $2 {[%emt 0:06:14]} (20... h6 $1 $19 {[%cal Rh6g5]} 21. Bc1 {[#]} d5 $1 {[%mdl 512]} 22. Nxc3 (22. Rxd5 $2 Ra8 $19) 22... d4) 21. Bc1 {[%emt 0:02:44]} Qb4 {[%emt 0:05:48]} 22. a3 {[%emt 0:09:15]} Qa5 {[%emt 0:02:14]} 23. Rd3 $2 {[%emt 0:11:31]} (23. Rxd6 $15 Bxd6 24. Nxd6+ Ke7 25. Nxc8+ Rxc8 26. Rd1) 23... d5 {[%emt 0:02:40]} 24. Rxc3 {[%emt 0:00:28]} Ra8 {[%emt 0:03:20]} 25. Nd2 {[%emt 0:05:01]} Bb4 {[%emt 0:03:09]} 26. Rd3 {[%emt 0:10:34]} e4 {[%emt 0:02:19]} 27. Nxe4 {[%emt 0:00:55]} dxe4 {[%emt 0:00:12]} 28. Qxe4+ {[%emt 0:00:07]} Qe5+ {[%emt 0:00:25]} 29. Qxe5+ {[%emt 0:00:50]} Nxe5 {[%emt 0:00:02]} 30. Re3 {[%emt 0:02:59]} f6 {[%emt 0:01:42]} 31. Bb2 {[%emt 0:00:51]} O-O {[%emt 0:02:05]} 32. Rb3 {[%emt 0:01:17]} Bd6 {[%emt 0:02:59]} 33. Rd1 {[%emt 0:00:20]} Rfd8 {[%emt 0:01:46]} 34. h4 {[%emt 0:01:33]} Nc4 {[%emt 0:03:07]} 35. Rdd3 {[%emt 0:00:11]} Nxb2 {[%emt 0:00:42]} 36. Kxb2 {[%emt 0:00:29]} Be5+ {[%emt 0:00:16]} 37. Ka2 {[%emt 0:00:07]} Rdc8 {[%emt 0:00:16]} 38. Kb1 {[%emt 0:00:29]} Ra4 {[%emt 0:00:33]} 39. Rb4 {[%emt 0:00:19]} Ra5 {[%emt 0:00:41]} 40. Rd7 {[%emt 0:01:53]} Rxa3 {[%emt 0:01:41]} 41. c4 {[%emt 0:00:12]} Rca8 {[%emt 0:01:54]} 42. Rbb7 {[%emt 0:01:06]} Ra1+ {[%emt 0:00:33]} 43. Kc2 {[%emt 0:00:01]} R1a2+ {[%emt 0:00:45]} 44. Kd3 {[%emt 0:00:17]} Rxg2 {[%emt 0:01:48]} 45. c5 {[%emt 0:00:46]} Rg3+ {[%emt 0:00:49]} 46. Kc4 {[%emt 0:01:07]} h6 {[%emt 0:00:55]} 47. c6 $1 $11 {[%emt 0:00:23]} Rc3+ $2 {[%emt 0:01:22]} (47... Kh7 $19 48. Kd5 h5) (47... Rc8 48. Kb5) 48. Kb4 $1 {[%emt 0:00:59]} Rg3 {[%emt 0:00:15]} 49. c7 $2 {[%emt 0:00:22] [#]} Bxc7 $1 {[%emt 0:00:59]} 50. Rbxc7 {[%emt 0:00:56]} Re8 {[%emt 0:00:18]} 51. Rd4 {[%emt 0:02:58]} Rg1 {[%emt 0:01:41]} 52. Kb5 {[%emt 0:00:37]} Rb8+ {[%emt 0:01:29]} 53. Kc6 {[%emt 0:00:13]} Rc1+ {[%emt 0:01:02]} 54. Kd7 {[%emt 0:00:02]} Rxc7+ {[%emt 0:00:13]} 55. Kxc7 {[%emt 0:00:01]} Rb5 {[%emt 0:00:09]} 56. Rf4 {[%emt 0:00:11]} Re5 {[%emt 0:00:28]} 57. Kd6 {[%emt 0:00:10]} h5 {[%emt 0:00:27]} 58. Kd7 {[%emt 0:00:05]} Kh7 {[%emt 0:00:25]} 59. Kd6 {[%emt 0:00:18]} Re1 {[%emt 0:00:19]} 60. Kd5 {[%emt 0:00:40]} Kh6 {[%emt 0:00:39]} 61. Kd4 {[%emt 0:00:24]} Kh7 $2 {[%emt 0:01:09]} (61... Rg1 $19 62. Ke3 g5 63. fxg6 Kxg6) 62. Kd3 {[%emt 0:00:51]} Kg8 {[%emt 0:00:19]} 63. Kd2 {[%emt 0:00:26]} Re5 {[%emt 0:00:27]} 64. Kd3 {[%emt 0:00:22]} Kf7 {[%emt 0:00:05]} 65. Kd4 {[%emt 0:00:13]} Ke7 {[%emt 0:00:30]} 66. Rf1 {[%emt 0:03:16]} Kd6 {[%emt 0:01:58]} 67. Rf2 {[%emt 0:01:01]} Ra5 {[%emt 0:00:25]} 68. Ke3 $2 {[%emt 0:00:40]} (68. Ke4 {was necessary.}) 68... Ra3+ {[%emt 0:01:39]} (68... Ke5 $142 69. Kf3 Kxf5 70. Kg3+ Ke6) 69. Kf4 {[%emt 0:00:11]} Ra4+ {[%emt 0:00:07]} 70. Kg3 {[%emt 0:00:51]} Rg4+ {[%emt 0:00:07]} 71. Kf3 $2 {[%emt 0:00:32]} (71. Kh3 {nothing else works.}) 71... Ke5 {[%emt 0:00:37]} 72. Ra2 {[%emt 0:00:24]} Kxf5 {[%emt 0:00:21]} 73. Ra7 {[%emt 0:00:18]} Kg6 {[%emt 0:00:14]} 74. Rb7 $19 {[%emt 0:00:24]} Rxh4 {[%emt 0:00:11]} 0-1

[Event "LTU-ch Women 2019"]
[Site "Vilnius"]
[Date "2019.03.21"]
[Round "7.4"]
[White "Perminaite, Guoda"]
[Black "Butvilaite, Berta Reja"]
[Result "1-0"]
[ECO "B33"]
[WhiteElo "1814"]
[BlackElo "1809"]
[Annotator "NA RC"]
[PlyCount "63"]
[EventDate "2019.??.??"]
[EventCountry "LTU"]
[SourceTitle "playchess.com"]
[Source "ChessBase"]
[SourceQuality "1"]
[TimeControl "5400+30"]

{[%evp 10,63,14,29,27,15,40,18,41,12,30,13,29,2,10,0,18,0,8,6,25,27,28,12,23,22,17,27,67,41,57,0,0,-2,338,353,452,491,506,552,632,580,586,584,589,522,485,539,493,467,479,501,555,630,767,826]} 1. e4 {[%emt 0:00:00]} c5 {[%emt 0:00:00]} 2. Nf3 {[%emt 0:00:00]} Nc6 {[%emt 0:00:00]} 3. d4 {[%emt 0:00:00]} cxd4 {[%emt 0:00:00]} 4. Nxd4 {[%emt 0:00:04]} Nf6 {[%emt 0:00:06]} 5. Nc3 {[%emt 0:00:09]} e5 {[%emt 0:00:13]} 6. Ndb5 {[%emt 0:00:15]} d6 {[%emt 0:00:15]} 7. Bg5 {[%emt 0:00:22]} a6 {[%emt 0:00:23]} 8. Na3 {[%emt 0:00:10]} b5 {[%emt 0:00:04]} 9. Nd5 {[%emt 0:00:18]} (9. Bxf6 $5 gxf6 10. Nd5 $11) 9... Be7 {[%emt 0:00:24]} 10. Bxf6 {[%emt 0:00:18]} Bxf6 {[%emt 0:00:16]} 11. c4 {[%emt 0:00:13]} b4 {[%emt 0:07:05]} 12. Nc2 {[%emt 0:00:10]} a5 {[%emt 0:01:01]} 13. g3 {[%emt 0:00:47] B33: Sicilian: Pelikan and Sveshnikov Variations} O-O {[%emt 0:01:08]} 14. Bg2 {[%emt 0:00:15]} Rb8 {[%emt 0:10:04]} 15. b3 {[%emt 0:05:16]} Be7 {[%emt 0:03:20]} 16. Nde3 $146 {[%emt 0:10:31]} ({Predecessor:} 16. O-O Be6 17. Nce3 Nd4 18. f4 Bxd5 19. Nxd5 Qd7 20. Qd3 Qa7 {1-0 (47) Nitin,S (2355)-Kulkarni,V (1990) Hyderabad 2013}) 16... Kh8 {[%emt 0:02:14]} 17. O-O {[%emt 0:02:34]} Qb6 {[%emt 0:02:22]} 18. Qd3 {[%emt 0:02:46]} g6 {[%emt 0:14:19]} 19. Rad1 {[%emt 0:04:54]} Be6 {[%emt 0:04:18]} 20. Nd5 {[%emt 0:06:50]} (20. Kh1 $14) 20... Bxd5 $1 {[%emt 0:00:46]} 21. Qxd5 {[%emt 0:00:11]} f5 $2 {[%emt 0:01:34]} (21... a4 $11) 22. exf5 {[%emt 0:00:28]} Rxf5 {[%emt 0:00:27]} 23. Qxc6 {[%emt 0:00:38]} Qa7 {[%emt 0:02:03]} 24. Ne3 {[%emt 0:05:35]} Rb6 {[%emt 0:03:25]} 25. Qa8+ {[%emt 0:01:07]} Qxa8 {[%emt 0:01:16]} 26. Bxa8 {[%emt 0:00:06]} Rf8 {[%emt 0:00:21]} 27. Be4 {[%emt 0:04:55]} Ra6 {[%emt 0:01:45]} 28. Nd5 {[%emt 0:00:45]} Bd8 {[%emt 0:01:05]} 29. Rd3 {[%emt 0:01:06]} Kg7 {[%emt 0:02:37]} 30. Kg2 {[%emt 0:01:13]} h5 {[%emt 0:01:12]} 31. h4 {[%emt 0:04:41]} g5 {[%emt 0:01:05]} 32. hxg5 $18 {[%emt 0:00:14]} 1-0

[Event "LTU-ch Women 2019"]
[Site "Vilnius"]
[Date "2019.03.21"]
[Round "7.5"]
[White "Malisauskiene, Marina"]
[Black "Maziukaite, Kristina"]
[Result "1/2-1/2"]
[ECO "D18"]
[WhiteElo "1869"]
[BlackElo "1491"]
[Annotator "NA RC"]
[PlyCount "80"]
[EventDate "2019.??.??"]
[EventCountry "LTU"]
[SourceTitle "playchess.com"]
[Source "ChessBase"]
[SourceQuality "1"]
[TimeControl "5400+30"]

{[%evp 14,75,31,24,37,32,62,40,102,51,73,93,95,11,22,24,2,10,27,0,8,0,21,33,31,28,39,24,65,33,53,41,45,31,25,37,40,16,22,0,0,0,0,0,0,0,0,0,0,0,0,-18,0,0,0,0,0,0,0,0,0,0,0,0]} 1. d4 {[%emt 0:00:00]} d5 {[%emt 0:00:00]} 2. Nf3 {[%emt 0:00:30]} Nf6 {[%emt 0:00:30]} 3. c4 {[%emt 0:00:30]} c6 {[%emt 0:00:30]} 4. Nc3 {[%emt 0:00:30]} dxc4 {[%emt 0:00:30]} 5. a4 {[%emt 0:00:30]} Bf5 {[%emt 0:00:30]} 6. e3 {[%emt 0:00:30]} e6 {[%emt 0:00:30]} 7. Bxc4 {[%emt 0:00:30]} Nbd7 {[%emt 0:01:01]} 8. O-O {[%emt 0:00:30]} Be7 {[%emt 0:01:12] LiveBook: 18 Games} 9. Qe2 {[%emt 0:01:03]} Bg4 {[%emt 0:02:51] D18: Slav Defence: 5 a4 Bf5 6 e3} (9... O-O 10. e4 Bg4 11. Rd1 Qa5 12. h3 Bxf3 13. Qxf3 e5 14. d5 Nb6 15. d6 Bxd6 16. Rxd6 Ne8 17. b4 Qxb4 {1-0 (35) Benidze,D (2525)-Khamrakulov,D (2478) Cesme 2017}) 10. Rd1 {[%emt 0:01:12]} c5 {[%emt 0:03:58]} (10... a6 $14) 11. d5 $146 {[%emt 0:01:30]} ({Predecessor:} 11. e4 cxd4 12. Rxd4 Bxf3 13. gxf3 {0-1 (40) Tsabazis,G (1825)-Margaritis,F (1940) Greece 2001}) 11... exd5 {[%emt 0:01:04]} 12. Nxd5 {[%emt 0:00:36]} O-O {[%emt 0:02:50]} 13. e4 {[%emt 0:08:03]} (13. h3 $16 Bxf3 14. Qxf3 Nxd5 15. Bxd5 (15. Rxd5 Qc8 $16)) 13... Nxd5 {[%emt 0:03:13]} 14. Bxd5 {[%emt 0:00:48]} Qc7 {[%emt 0:01:01]} 15. h3 {[%emt 0:03:02]} Bh5 $1 {[%emt 0:02:31]} 16. Be3 {[%emt 0:11:03]} Nf6 {[%emt 0:06:32]} 17. Rac1 {[%emt 0:07:38]} Nxd5 {[%emt 0:03:26] Rxd} 18. Rxd5 {[%emt 0:00:30]} Bxf3 $1 {[%emt 0:01:14]} 19. Qxf3 {[%emt 0:15:45]} b6 {[%emt 0:06:35]} 20. b4 {[%emt 0:05:40]} Qc6 {[%emt 0:03:41]} 21. bxc5 {[%emt 0:01:59]} bxc5 {[%emt 0:00:30]} 22. Bxc5 {[%emt 0:06:31]} Bxc5 {[%emt 0:00:30]} 23. Rdxc5 {[%emt 0:00:30]} Qxa4 {[%emt 0:00:30]} 24. e5 {[%emt 0:01:45]} Qd7 {[%emt 0:09:07]} 25. Rc7 {[%emt 0:01:47]} Qe6 {[%emt 0:00:35]} 26. R1c5 {[%emt 0:04:46]} a5 {[%emt 0:04:20]} 27. Qa3 {[%emt 0:05:42]} a4 {[%emt 0:02:32]} 28. Rb5 {[%emt 0:00:52]} h6 {[%emt 0:02:15]} 29. Re7 {[%emt 0:02:16]} Qf5 {[%emt 0:04:32]} 30. Rbb7 {[%emt 0:01:01]} Ra6 {[%emt 0:02:23]} 31. Qa2 {[%emt 0:06:38]} h5 {[%emt 0:06:09]} 32. h4 {[%emt 0:00:30]} Re6 {[%emt 0:02:08]} 33. Qxa4 {[%emt 0:04:31]} Rxe5 {[%emt 0:02:30]} 34. Qd4 {[%emt 0:00:58]} Rxe7 {[%emt 0:00:51]} 35. Rxe7 {[%emt 0:00:30]} Rc8 {[%emt 0:01:16]} 36. g3 {[%emt 0:01:28]} Qf3 {[%emt 0:00:57]} 37. Qd2 {[%emt 0:01:01]} Qf6 {[%emt 0:01:16]} 38. Rd7 $11 {[%emt 0:01:20]} Ra8 {[%emt 0:01:52]} 39. Kg2 {[%emt 0:00:47]} Re8 {[%emt 0:02:54]} 40. Qd5 {[%emt 0:01:12]} g6 {[%emt 0:01:32]} 1/2-1/2

[Event "LTU-ch Women 2019"]
[Site "Vilnius"]
[Date "2019.03.21"]
[Round "7.6"]
[White "Maciulaityte, Barbora"]
[Black "Ramanauskaite, Giedre"]
[Result "1/2-1/2"]
[ECO "C26"]
[WhiteElo "1765"]
[BlackElo "1870"]
[Annotator "NA RC"]
[PlyCount "75"]
[EventDate "2019.??.??"]
[EventCountry "LTU"]
[SourceTitle "playchess.com"]
[Source "ChessBase"]
[SourceQuality "1"]
[TimeControl "5400+30"]

{[%evp 8,74,24,-15,-8,-14,5,-22,-16,-27,20,18,45,25,50,36,39,34,45,0,32767,32767,0,-2,0,0,0,-10,2,-33,-31,-20,-17,-15,-10,-60,0,-12,0,5,0,0,13,-18,0,0,0,0,0,0,32767,32767,32767,32767,2,2,2,0,10,0,0,0,0,0,0,-81,-74,-75,-23]} 1. e4 {[%emt 0:00:00]} e5 {[%emt 0:00:00]} 2. Nc3 {[%emt 0:00:00]} Nf6 {[%emt 0:00:00]} 3. g3 {[%emt 0:00:00]} Nc6 {[%emt 0:00:50]} 4. Bg2 {[%emt 0:00:21]} a6 {[%emt 0:03:24]} 5. Nge2 {[%emt 0:01:23]} Bc5 {[%emt 0:00:29]} 6. O-O {[%emt 0:00:28]} O-O {[%emt 0:01:31]} 7. h3 {[%emt 0:01:51] C26: Vienna Game: 2...Nf6, sidelines} (7. d3 d6 8. h3 Be6 9. Kh2 d5 10. f4 dxe4 11. f5 exd3 12. fxe6 dxe2 13. exf7+ Rxf7 14. Qxe2 Nd4 15. Qc4 Qf8 16. Ne4 Rd8 {1-0 (24) Mamedov,R (2703)-Tang,A (2487) chess.com INT 2019}) 7... d6 {[%emt 0:00:32]} 8. Kh2 {[%emt 0:01:37]} Ne8 {[%emt 0:09:14]} 9. f4 {[%emt 0:05:44]} exf4 {[%emt 0:04:53]} 10. Rxf4 $146 {[%emt 0:02:59]} ({Predecessor:} 10. Nxf4 Nd4 11. d3 c6 12. Nce2 f5 13. Nxd4 Bxd4 14. c3 Be5 {1-0 (68) Turner,M (2400)-Hresc,V (2445) Werfen 1995}) 10... Nd4 {[%emt 0:03:14]} 11. Nxd4 {[%emt 0:10:08]} Bxd4 {[%emt 0:00:10]} 12. Ne2 {[%emt 0:00:19]} Be5 {[%emt 0:01:39]} 13. Rf2 {[%emt 0:00:56]} c5 {[%emt 0:02:55]} 14. c3 {[%emt 0:03:03]} c4 {[%emt 0:05:06]} 15. d4 {[%emt 0:04:24]} cxd3 $1 {[%emt 0:00:32]} 16. Qxd3 {[%emt 0:00:04]} Nf6 {[%emt 0:01:30]} 17. Be3 {[%emt 0:02:46]} b5 {[%emt 0:06:07]} 18. Nf4 {[%emt 0:05:52]} Bb7 {[%emt 0:01:07]} 19. a4 {[%emt 0:12:26]} Bc6 {[%emt 0:04:04]} 20. axb5 {[%emt 0:00:30]} axb5 {[%emt 0:00:24]} 21. Rff1 {[%emt 0:00:26]} Qc8 {[%emt 0:01:16]} ({Black should play} 21... Rxa1 $15 22. Rxa1 h5) 22. Nd5 {[%emt 0:09:22]} Nxd5 {[%emt 0:01:48]} (22... Bxd5 $5 23. exd5 Rb8 $11) 23. exd5 {[%emt 0:00:05]} Bd7 {[%emt 0:00:14]} 24. Bd4 {[%emt 0:05:18]} f6 {[%emt 0:01:15]} 25. Qe4 {[%emt 0:10:18]} Qb7 {[%emt 0:02:34]} 26. Bxe5 {[%emt 0:02:26]} fxe5 {[%emt 0:00:20]} 27. Rxf8+ {[%emt 0:01:46]} Rxf8 {[%emt 0:03:45]} 28. Qe3 {[%emt 0:00:18]} Ra8 {[%emt 0:01:25]} 29. Rxa8+ {[%emt 0:00:09]} Qxa8 {[%emt 0:00:06]} 30. Qb6 {[%emt 0:00:07]} Qf8 {[%emt 0:00:56]} 31. Kg1 {[%emt 0:03:32]} h5 32. Qb7 {[%emt 0:01:43]} Be8 {[%emt 0:04:54]} 33. Qc7 {[%emt 0:01:06]} Qf6 {[%emt 0:02:06]} 34. Qb8 {[%emt 0:00:26]} Kf7 {[%emt 0:01:09]} 35. Qc8 {[%emt 0:04:24]} Ke7 {[%emt 0:02:04]} 36. Bf1 {[%emt 0:02:50]} (36. Be4 $11 {keeps the balance.}) 36... Bd7 {[%emt 0:01:12]} 37. Qh8 {[%emt 0:00:48]} Be8 $11 {[%emt 0:06:56]} ({Black should play} 37... Qg6 $17 38. Kf2 e4) 38. Bg2 1/2-1/2